Workbook

Sheet Sedmične prodajne aktivnosti
B1: SEDMIČNE PRODAJNE AKTIVNOSTI | I1: PRODAVAC | J1: Ime | L1: KRAJ SEDMICE | M1: Datum
I3: MESTO | J3: Mesto | L3: DANAŠNJI DATUM | M3: Datum
B5: DANI | C5: U PRODAJNOJ KANCELARIJI | D5: VAN KANCELARIJE | E5: POSETE U KANCELARIJI | F5: SPOLJNI POZIVI | G5: ARHIVIRANI TELEFONSKI POZIVI | H5: NOVI NALOG TELEFON | I5: SOBE ZA GOSTE | J5: HRANA I PIĆE | K5: SASTANAK IZNAJMLJIVANJE SOBE | L5: DRUGO* | M5: UKUPNO
B6: Ponedeljak | C6: 14.00 RSD | D6: 23.00 RSD | E6: 4.00 RSD | F6: 45.00 RSD | G6: 22.00 RSD | H6: 2.00 RSD | I6: 100.00 RSD | J6: 0.00 RSD | K6: 0.00 RSD | L6: 0.00 RSD | M6: =SUM(Aktivnost[[#This Row],[U PRODAJNOJ KANCELARIJI]:[DRUGO*]]) -> 210.00 RSD
B7: Utorak | C7: 23.00 RSD | D7: 76.00 RSD | E7: 10.00 RSD | F7: 50.00 RSD | G7: 54.00 RSD | H7: 45.00 RSD | I7: 80.00 RSD | J7: 0.00 RSD | K7: 0.00 RSD | L7: 0.00 RSD | M7: =SUM(Aktivnost[[#This Row],[U PRODAJNOJ KANCELARIJI]:[DRUGO*]]) -> 338.00 RSD
B8: Sreda | C8: 4.00 RSD | D8: 130.00 RSD | E8: 11.00 RSD | F8: 33.00 RSD | G8: 67.00 RSD | H8: 65.00 RSD | I8: 400.00 RSD | J8: 0.00 RSD | K8: 0.00 RSD | L8: 0.00 RSD | M8: =SUM(Aktivnost[[#This Row],[U PRODAJNOJ KANCELARIJI]:[DRUGO*]]) -> 710.00 RSD
B9: Četvrtak | C9: 102.00 RSD | D9: 40.00 RSD | E9: 18.00 RSD | F9: 0.00 RSD | G9: 86.00 RSD | H9: 82.00 RSD | I9: 97.00 RSD | J9: 0.00 RSD | K9: 0.00 RSD | L9: 0.00 RSD | M9: =SUM(Aktivnost[[#This Row],[U PRODAJNOJ KANCELARIJI]:[DRUGO*]]) -> 425.00 RSD
B10: Petak | C10: 33.00 RSD | D10: 55.00 RSD | E10: 22.00 RSD | F10: 49.00 RSD | G10: 143.00 RSD | H10: 26.00 RSD | I10: 50.00 RSD | J10: 0.00 RSD | K10: 0.00 RSD | L10: 0.00 RSD | M10: =SUM(Aktivnost[[#This Row],[U PRODAJNOJ KANCELARIJI]:[DRUGO*]]) -> 378.00 RSD
B11: Subota | C11: 0.00 RSD | D11: 0.00 RSD | E11: 0.00 RSD | F11: 0.00 RSD | G11: 0.00 RSD | H11: 0.00 RSD | I11: 0.00 RSD | J11: 0.00 RSD | K11: 0.00 RSD | L11: 0.00 RSD | M11: =SUM(Aktivnost[[#This Row],[U PRODAJNOJ KANCELARIJI]:[DRUGO*]]) -> 0.00 RSD
B12: Nedelja | C12: 0.00 RSD | D12: 0.00 RSD | E12: 0.00 RSD | F12: 0.00 RSD | G12: 0.00 RSD | H12: 0.00 RSD | I12: 0.00 RSD | J12: 0.00 RSD | K12: 0.00 RSD | L12: 0.00 RSD | M12: =SUM(Aktivnost[[#This Row],[U PRODAJNOJ KANCELARIJI]:[DRUGO*]]) -> 0.00 RSD
B13: Ukupno | C13: =SUBTOTAL(109,Aktivnost[U PRODAJNOJ KANCELARIJI]) -> 176.00 RSD | D13: =SUBTOTAL(109,Aktivnost[VAN KANCELARIJE]) -> 324.00 RSD | E13: =SUBTOTAL(109,Aktivnost[POSETE U KANCELARIJI]) -> 65.00 RSD | F13: =SUBTOTAL(109,Aktivnost[SPOLJNI POZIVI]) -> 177.00 RSD | G13: =SUBTOTAL(109,Aktivnost[ARHIVIRANI TELEFONSKI POZIVI]) -> 372.00 RSD | H13: =SUBTOTAL(109,Aktivnost[NOVI NALOG TELEFON]) -> 220.00 RSD | I13: =SUBTOTAL(105,Aktivnost[SOBE ZA GOSTE]) -> 0.00 RSD | J13: =SUBTOTAL(109,Aktivnost[HRANA I PIĆE]) -> 0.00 RSD | K13: =SUBTOTAL(109,Aktivnost[SASTANAK IZNAJMLJIVANJE SOBE]) -> 0.00 RSD | L13: =SUBTOTAL(109,Aktivnost[DRUGO*]) -> 0.00 RSD | M13: =SUBTOTAL(109,Aktivnost[UKUPNO]) -> 2,061.00 RSD
B15: CILJ | C15: 200.00 RSD | D15: 400.00 RSD | E15: 300.00 RSD | F15: 65.00 RSD | G15: 500.00 RSD | H15: 300.00 RSD | I15: 400.00 RSD | J15: 600.00 RSD | K15: 300.00 RSD | L15: 300.00 RSD | M15: =SUM(C15:L15) -> 3,365.00 RSD
B16: ODSTUPANJE | C16: =SUM(Aktivnost[[#Totals],[U PRODAJNOJ KANCELARIJI]]-C15) -> -24.00 RSD | D16: =SUM(Aktivnost[[#Totals],[VAN KANCELARIJE]]-D15) -> -76.00 RSD | E16: =SUM(Aktivnost[[#Totals],[POSETE U KANCELARIJI]]-E15) -> -235.00 RSD | F16: =SUM(Aktivnost[[#Totals],[POSETE U KANCELARIJI]]-F15) -> 0.00 RSD | G16: =SUM(Aktivnost[[#Totals],[ARHIVIRANI TELEFONSKI POZIVI]]-G15) -> -128.00 RSD | H16: =SUM(Aktivnost[[#Totals],[NOVI NALOG TELEFON]]-H15) -> -80.00 RSD | I16: =SUM(Aktivnost[[#Totals],[SOBE ZA GOSTE]]-I15) -> -400.00 RSD | J16: =SUM(Aktivnost[[#Totals],[HRANA I PIĆE]]-J15) -> -600.00 RSD | K16: =SUM(Aktivnost[[#Totals],[SASTANAK IZNAJMLJIVANJE SOBE]]-K15) -> -300.00 RSD | L16: =SUM(Aktivnost[[#Totals],[DRUGO*]]-L15) -> -300.00 RSD | M16: =SUM(C16:L16) -> -2,143.00 RSD
B18: *OBJAŠNJENJE
B20: Odobrenje
